Workbook

Sheet 4財政
A1: ４ 財 政
A3: 館名 | C3: 令和5年度予算額 | F3: 資料費 | K3: 資料費 | M3: 人口1人当図書費
C4: 教育費 | D4: 社会教育費 | E4: 図書館費 | F4: 令和5度予算額のうち | K4: 令和3年度決算額のうち
F5: 図書費 | G5: 新 聞 雑誌費 | H5: 視聴覚 資料費 | I5: その他 | J5: 計 | K5: 図書費 | L5: 新聞 雑誌費
C6: 千円 | D6: 千円 | E6: 千円 | F6: 千円 | G6: 千円 | H6: 千円 | I6: 千円 | J6: 千円 | K6: 千円 | L6: 千円 | M6: 円 | O6: 図書費計 | R6: 人口
A7: 県立長野 | C7: 172466364 | D7: 921922 | E7: 210666 | F7: 28564 | G7: 4100 | H7: 0 | I7: 16734 | J7: =SUM(F7:I7) -> 49398 | K7: 31504 | L7: 3576 | M7: =(O7*1000)/R7 -> 14.22760077 | O7: =F7 -> 28564 | P7: 県立長野 | R7: 2007647
A8: 長野市立長野 | C8: 17242291 | D8: 4077181 | E8: 165638 | F8: 32664 | G8: 1920 | H8: 1100 | I8: 1511 | J8: =SUM(F8:I8) -> 37195 | K8: 30910 | L8: 1923 | M8: =(O8*1000)/R8 -> 163.4910374 | O8: =F8+F9 -> 59686 | P8: 長野市立長野 | R8: 365072
A9: 長野市立南部 | E9: 358776 | F9: 27022 | G9: 1663 | H9: 0 | I9: 344 | J9: 29029 | K9: 26127 | L9: 1621 | P9: 長野市立南部
A10: 松本市中央 | C10: 10483720 | D10: 3294800 | E10: 208400 | F10: 76450 | G10: 6010 | H10: 3300 | J10: =SUM(F10:I20) -> 85760 | K10: 80625 | L10: 5875 | M10: =(O10*1000)/R10 -> 320.3905873 | O10: =F10 -> 76450 | P10: 松本市中央 | R10: 238615
B11: あがたの森 | Q11: あがたの森
B12: 鎌田 | Q12: 鎌田
B13: 南部 | Q13: 南部
B14: 寿台 | Q14: 寿台
B15: 本郷 | Q15: 本郷
B16: 中山文庫 | Q16: 中山文庫
B17: 島内 | Q17: 島内
B18: 空港 | Q18: 空港
B19: 波田 | Q19: 波田
B20: 梓川 | Q20: 波田
A21: 上田市立上田 | C21: 6725178 | D21: 950105 | E21: 317416 | F21: 15112 | G21: 1290 | I21: 673 | J21: =SUM(G21:I21) -> 1963 | K21: 15237 | L21: 1241 | M21: =(O21*1000)/R21 -> 194.9707564 | O21: =SUM(F21:F24) -> 29502 | P21: 上田市立上田 | R21: 151315
A22: 上田市立丸子 | E22: 98307 | F22: 5400 | G22: 576 | H22: 0 | I22: 0 | J22: =SUM(G22:I22) -> 576 | K22: 5389 | L22: 580 | P22: 上田市立丸子金子
A23: 上田情報ライブラリー | E23: 32233 | F23: 3990 | G23: 2740 | H23: 240 | J23: 2980 | K23: 3824 | L23: 2684 | P23: 上田情報ライブラリー
A24: 上 田 市 立 真 田 | E24: 28570 | F24: 5000 | G24: 543 | J24: 543 | K24: 4727 | L24: 499 | P24: 上 田 市 立 真 田
A25: 市立岡谷 | C25: 1802946 | D25: 318791 | E25: 69420 | F25: 7720 | G25: 982 | H25: 210 | I25: 1121 | J25: 2313 | K25: 7925 | L25: 968 | M25: 166.8756215 | O25: =F25 -> 7720 | P25: 市立岡谷 | R25: 46262
A26: 飯田市立中央 | C26: 4785543 | D26: 1542312 | E26: 277130 | F26: 26591 | G26: 4103 | H26: 80 | I26: 1399 | J26: 5582 | K26: 26630 | L26: 3885 | M26: 279.8758025 | O26: =SUM(F26:F44) -> 26591 | P26: 飯田市立中央 | R26: 95010
B27: 羽場分館 | J27: 0 | Q27: 上郷
B28: 丸山分館 | J28: 0 | Q28: 鼎
B29: 東野分館 | J29: 0 | Q29: 羽場分館
B30: 座光寺分館 | J30: 0 | Q30: 丸山分館
B31: 松尾分館 | J31: 0 | Q31: 東野分館
B32: 下久堅分館 | J32: 0 | Q32: 座光寺分館
B33: 上久堅分館 | J33: 0 | Q33: 松尾分館
B34: 千代分館 | Q34: 下久堅分館
B35: 龍江分館 | Q35: 上久堅分館
B36: 竜丘分館 | Q36: 千代分館
B37: 川路分館 | Q37: 龍江分館
B38: 三穂分館 | Q38: 竜丘分館
B39: 山本分館 | Q39: 川路分館
B40: 伊賀良分館 | Q40: 三穂分館
B41: 上村分館 | Q41: 山本分館
B42: 南信濃分館 | Q42: 伊賀良分館
A43: 飯田市立上郷 | Q43: 上村分館
A44: 飯田市立鼎 | Q44: 南信濃分館
A45: 諏訪市 | C45: 1900169 | D45: 656981 | E45: 34974 | F45: 8200 | G45: 1006 | H45: 420 | J45: =SUM(F45:I45) -> 9626 | K45: 820 | L45: 928 | M45: 173.4833351 | O45: =SUM(F45:F46) -> 8250 | P45: 諏訪市 | R45: 47555
B46: 信州風樹文庫 | E46: 11723 | F46: 50 | G46: 76 | H46: 0 | J46: =SUM(F46:I46) -> 126 | K46: 47 | L46: 73 | Q46: 信州風樹文庫
A47: 市立須坂 | C47: 2870586 | D47: 879383 | E47: 160287 | F47: 8233 | G47: 1227 | H47: 525 | I47: 1015 | J47: 11000 | K47: 11032 | M47: 168.5466866 | O47: =F47 -> 8233 | P47: 市立須坂 | R47: 48847
A48: 市立小諸 | C48: 1832219 | D48: 465729 | E48: 65076 | F48: 9000 | G48: 1126 | H48: 0 | I48: 0 | J48: 10126 | K48: 9132 | L48: 1387 | M48: 222.1563981 | O48: =F48 -> 9000 | P48: 市立小諸 | R48: 40512
A49: 伊那市立伊那 | C49: 2640358 | D49: 738841 | E49: 95441 | F49: 6617 | G49: 2594 | H49: 437 | I49: 86178 | J49: 95826 | K49: 6173 | L49: 2158 | M49: 141.5923715 | O49: =SUM(F49:F50) -> 9132 | P49: 伊那市立伊那 | R49: 64495
A50: 伊那市立高遠町 | E50: 32474 | F50: 2515 | G50: 385 | H50: 157 | I50: 29417 | J50: 32474 | K50: 2138 | L50: 370 | P50: 伊那市立高遠町
A51: 駒ケ根市立 | C51: 1596964 | D51: 396383 | E51: 13676 | F51: 8270 | G51: 1220 | H51: 300 | I51: 165 | J51: =SUM(F51:I53) -> 9955 | K51: 7260 | L51: 1192 | M51: 262.664761 | O51: =F51 -> 8270 | P51: 駒ケ根市立 | R51: 31485
B52: 東伊那分館 | O52: =F52 -> 0 | Q52: 東伊那分館
B53: 中沢分館 | M53: =(O53*1000)/R53 ->  | O53: =F53 -> 0 | Q53: 中沢分館
A54: 中野市立 | C54: 1489314 | D54: 282927 | E54: 83753 | F54: 7216 | G54: 938 | H54: 194 | I54: 1609 | J54: =SUM(F54:I56) -> 10323 | K54: 7027 | L54: 899 | M54: 199.3763399 | O54: =SUM(F54:F57) -> 8184 | P54: 中野市立 | R54: 41048
B55: 北部分館 | F55: 165 | G55: 18 | H55: 0 | I55: 0 | K55: 144 | L55: 18 | Q55: 北部分館
B56: 西部分館 | F56: 165 | G56: 18 | H56: 0 | I56: 0 | K56: 144 | L56: 17 | Q56: 西部分館
B57: 豊田分館 | F57: 638 | G57: 30 | H57: 0 | I57: 0 | J57: =SUM(F57:I59) -> 13198 | K57: 519 | L57: 29 | Q57: 豊田分館
A58: 市立大町 | C58: 1212382 | D58: 281691 | E58: 27596 | F58: 6888 | G58: 708 | H58: 200 | I58: 481 | K58: 6189 | L58: 950 | M58: 275.4208485 | O58: =F58 -> 6888 | P58: 市立大町 | R58: 25009
A59: 市立飯山 | C59: 2350113 | D59: 262198 | E59: 33454 | F59: 3611 | G59: 561 | H59: 45 | I59: 36 | K59: 4486 | L59: 586 | M59: 194.3696846 | N59: ※３ | O59: =F59 -> 3611 | P59: 市立飯山 | R59: 18578
A60: 茅野市 | C60: 7534122 | D60: 807214 | E60: 58453 | F60: 9750 | G60: 1438 | H60: 66 | I60: 330 | J60: =SUM(F60:I60) -> 11584 | K60: 9653 | L60: 1376 | M60: 176.2982786 | O60: =F60 -> 9750 | P60: 茅野市 | R60: 55304
A61: 塩尻市立 | C61: 3326621 | D61: 989853 | E61: 239116 | F61: 27776 | G61: 5420 | H61: 2224 | I61: 0 | J61: =SUM(F61:I69) -> 35420 | K61: 27842 | L61: 5104 | M61: 418.9252372 | O61: =F61 -> 27776 | P61: 塩尻市立 | R61: 66303
B62: 広丘図書館 | Q62: 広丘図書館
B63: 北小野分館 | Q63: 北小野分館
B64: 片丘分館 | Q64: 片丘分館
B65: 塩尻東分館 | Q65: 塩尻東分館
B66: 宗賀分館 | Q66: 宗賀分館
B67: 洗馬分館 | Q67: 洗馬分館
B68: 吉田分館 | Q68: 吉田分館
B69: 楢川分館 | Q69: 楢川分館
A70: 佐久市立中央 | C70: 5763889 | D70: 1933071 | E70: 104299 | F70: 21130 | G70: 2900 | H70: 0 | I70: 580 | J70: =SUM(F70:I74) -> 24610 | K70: 21000 | L70: 2829 | M70: 217.0853239 | O70: =F70 -> 21130 | P70: 佐久市中央 | R70: 97335
B71: サングリモ中込 | O71: =F71 -> 0 | Q71: サングリモ中込
A72: 佐久市立臼田 | O72: =F72 -> 0 | P72: 佐久市立臼田
A73: 佐久市立浅科 | O73: =F73 -> 0 | P73: 佐久市立浅科
A74: 佐久市立望月 | O74: =F74 -> 0 | P74: 佐久市立望月
A75: 千曲市立更埴 | C75: 3333354 | D75: 1113772 | E75: 71007 | F75: 7183 | G75: 833 | H75: 0 | I75: 0 | J75: 8016 | K75: 5145 | L75: 812 | M75: 215.7477062 | O75: =SUM(F75:F77) -> 12533 | P75: 千曲市立更埴 | R75: 58091
B76: 更埴西 | Q76: 千曲市立更埴西
A77: 千曲市立戸倉 | F77: 5350 | G77: 601 | H77: 0 | I77: 0 | J77: 5951 | K77: 5360 | L77: 741 | P77: 千曲市立戸倉
A78: 東御市立 | C78: 818065 | D78: 240023 | E78: 78161 | F78: 6700 | G78: 989 | H78: 0 | I78: 0 | J78: 7689 | K78: 6696 | L78: 1083 | M78: 226.9417065 | O78: =F78 -> 6700 | P78: 東御市立 | R78: 29523
A79: 安曇野市中央 | C79: 4520764 | D79: 1072740 | E79: 160335 | F79: 19254 | G79: 4940 | H79: - | I79: - | J79: 24194 | K79: 18149 | L79: 4683 | M79: 206.3488661 | O79: 19254 | P79: 安曇野市中央 | R79: 93308
B80: 豊科 | O80: 0 | Q80: 豊科
B81: 三郷 | O81: 0 | Q81: 三郷
B82: 堀金 | O82: 0 | Q82: 堀金
B83: 明科 | O83: 0 | Q83: 明科
A84: 小海町 | C84: 463182 | D84: 126253 | E84: 16651 | F84: 3128 | G84: 330 | H84: 320 | I84: 0 | J84: =SUM(F84:I84) -> 3778 | K84: 3128 | L84: 330 | M84: 760.3305785 | O84: =F84 -> 3128 | P84: 小海町 | R84: 4114
A85: 佐久穂町立 | C85: 642439 | D85: 199385 | E85: 26504 | F85: 2600 | G85: 1712 | H85: 100 | I85: 226 | J85: =SUM(F85:I85) -> 4638 | K85: 2906 | L85: 1180 | M85: 264.281358 | O85: 2600 | P85: 佐久穂町 | R85: 9838
A86: 軽井沢町立中軽井沢 | C86: 2712035 | D86: 876385 | E86: 34271 | F86: 5800 | G86: 1150 | H86: 200 | I86: 650 | J86: 7800 | K86: 4998 | L86: 1065 | M86: 295.1353552 | O86: =F86 -> 5800 | P86: 軽井沢町立 | R86: 19652
A87: 軽井沢町立離山 | F87: 中軽井沢図書館に一括計上 | P87: 軽井沢町立
A88: 御代田町立 | C88: 749151 | D88: 228498 | E88: 25689 | F88: 5800 | G88: 1057 | H88: 234 | I88: 338 | J88: =SUM(F88:I88) -> 7429 | K88: 6862 | L88: 1038 | M88: =(O88*1000)/R88 -> 363.2264529 | O88: 5800 | P88: 御代田町立 | R88: 15968
A89: 下諏訪町立 | C89: 873217 | D89: 373987 | E89: 37448 | F89: 6289 | G89: 703 | H89: 1000 | I89: 234 | J89: =SUM(F89:I89) -> 8226 | K89: 6482 | L89: 702 | M89: 339.7806473 | O89: 6289 | P89: 下諏訪町立 | R89: 18509
A90: 富士見町 | C90: 738228 | D90: 227806 | E90: 31366 | F90: 6006 | G90: 1694 | H90: 800 | I90: 0 | J90: 8500 | K90: 6029 | L90: 1485 | M90: 432.677761 | O90: 6006 | P90: 富士見町 | R90: 13881
A91: 辰野町立辰野 | C91: 1159673 | D91: 258190 | E91: 38225 | F91: 6290 | G91: 965 | H91: 450 | J91: 7705 | K91: 6186 | L91: 771 | M91: 352.9741863 | O91: 6290 | P91: 辰野町立辰野 | R91: 17820
A92: 箕輪町 | C92: 1817568 | D92: 995410 | E92: 28425 | F92: 4800 | G92: 1100 | H92: 100 | I92: 264 | J92: 6264 | K92: 4612 | L92: 1052 | M92: 194.3005181 | O92: 4800 | P92: 箕輪町 | R92: 24704
A93: 飯島町 | C93: 462746 | D93: 134314 | E93: 17901 | F93: 2830 | G93: 240 | H93: 110 | J93: 3180 | K93: 2372 | L93: 827 | M93: 324.7647464 | O93: 2830 | P93: 飯島町 | R93: 8714
A94: 松川町 | C94: 469087 | D94: 104678 | E94: 16408 | F94: 5600 | G94: 437 | H94: 0 | I94: 0 | J94: 6037 | K94: 7415 | L94: 598 | M94: 457.8529965 | O94: 5600 | P94: 松川町 | R94: 12231
A95: 高森町立 | C95: 1294658 | D95: 1199268 | E95: 10845 | F95: 3970 | G95: 883 | H95: 396 | I95: 80 | J95: 5329 | K95: 4327 | L95: 824 | M95: 313.4622977 | O95: 3970 | P95: 高森町立 | R95: 12665
A96: 阿南町立 | C96: 424025 | D96: 103160 | E96: 23380 | F96: 3800 | G96: 420 | H96: － | I96: － | J96: 4220 | K96: 3628 | L96: 459 | M96: 945.9795868 | O96: 3800 | P96: 阿南町立 | R96: 4017
A97: 木曽町 | C97: 1174170 | D97: 257864 | E97: 11700 | F97: 1930 | G97: 870 | H97: 200 | I97: 8700 | J97: =SUM(F97:I100) -> 11700 | K97: 3150 | L97: 850 | M97: 192.9228309 | O97: =F97 -> 1930 | P97: 木曽町 | R97: 10004
B98: 日義分館 | Q98: 日義分館
B99: 開田分館 | Q99: 開田分館
B100: 三岳分館 | Q100: 三岳分館
A101: 池田町 | C101: 452635 | D101: 121810 | E101: 17508 | F101: 3080 | G101: 554 | H101: 0 | I101: 0 | J101: =SUM(F101:I104) -> 16737 | K101: 3080 | L101: 550 | M101: =(O101*1000)/R101 -> 343.1372549 | O101: 3080 | P101: 池田町 | R101: 8976
A102: 坂城町立 | C102: 653971 | D102: 184554 | E102: 28754 | F102: 4100 | G102: 765 | H102: 0 | I102: 0 | K102: 4100 | L102: 759 | M102: 304.4479097 | O102: 4100 | P102: 坂城町立 | R102: 13467
A103: 小布施町立 | C103: 663117 | D103: 177554 | E103: 46921 | F103: 4000 | G103: 800 | H103: 200 | I103: 50 | K103: 3996 | L103: 725 | M103: 375.7279729 | O103: 4000 | P103: 小布施町立 | R103: 10646
A104: 山ノ内町立蟻川 | C104: 625147 | D104: 151871 | E104: 20921 | F104: 2370 | G104: 818 | K104: 2070 | L104: 947 | M104: 219.8923734 | O104: 2370 | P104: 山ノ内町立蟻川 | R104: 10778
A105: 川上村文化センター | C105: 805649 | D105: 101093 | E105: 17154 | F105: 2046 | G105: 708 | H105: 1254 | I105: 0 | J105: =SUM(F105:I108) -> 29380 | K105: 2578 | L105: 644 | M105: 526.9121813 | O105: 2046 | P105: 川上村文化センター | R105: 3883
A106: 南牧村 | C106: 378703 | D106: 100775 | E106: 20831 | F106: 2500 | G106: 800 | H106: 500 | I106: 17031 | K106: 2569 | L106: 532 | M106: 814.3322476 | O106: 2500 | P106: 南牧村 | R106: 3070
A107: 南相木村立ふれあい | C107: 218361 | D107: 35526 | E107: 5641 | F107: 1300 | G107: 487 | H107: 200 | K107: 2499 | L107: 488 | M107: 1420.765027 | O107: 1300 | P107: 南相木村立 | R107: 915
A108: 青木村 | C108: 305250 | D108: 74145 | E108: 18364 | F108: 2090 | G108: 464 | K108: 2193 | L108: 413 | M108: 526.8464835 | O108: 2090 | P108: 青木村 | R108: 3967
A109: 原村 | C109: 697840 | D109: 141461 | E109: 38200 | F109: 4500 | G109: 313 | H109: 0 | I109: 0 | J109: =SUM(F109:I112) -> 21479 | K109: 4311 | L109: 689 | M109: 586.931003 | O109: 4500 | P109: 原村 | R109: 7667
A110: 南箕輪村 | C110: 676648 | D110: 76703 | E110: 18715 | F110: 6000 | G110: 745 | K110: 4690 | L110: 680 | M110: 373.0647267 | O110: 6000 | P110: 南箕輪村 | R110: 16083
A111: 中川村 | C111: 479560 | D111: 142737 | E111: 12820 | F111: 3000 | G111: 754 | K111: 3000 | L111: 754 | M111: 665.6312403 | O111: 3000 | P111: 中川村 | R111: 4507
A112: 宮田村 | C112: 480304 | D112: 76000 | E112: 17658 | F112: 4774 | G112: 938 | H112: 418 | I112: 37 | K112: 2570 | L112: 824 | M112: 566.5124006 | O112: 4774 | P112: 宮田村 | R112: 8427
A113: 阿智村 | C113: 581659 | D113: 52208 | E113: 14353 | F113: 3500 | G113: 700 | J113: 35629 | K113: 3500 | L113: 700 | M113: 600.240096 | O113: =F113 -> 3500 | P113: 阿智村 | R113: 5831
A114: 根羽村立 | C114: 196989 | D114: 11614 | E114: 163 | F114: 12 | K114: 12 | M114: 14.79654747 | O114: 12 | P114: 根羽村立 | R114: 811
A115: 下條村立 | C115: 393794 | D115: 138566 | E115: 31255 | F115: 3323 | G115: 924 | H115: 990 | I115: 26018 | K115: 3917 | L115: 708 | M115: 987.8121284 | O115: 3323 | P115: 下條村立 | R115: 3364
A116: 天龍村 | C116: 887660 | D116: 36258 | E116: 162 | F116: 100 | G116: 62 | M116: 92.67840593 | O116: 100 | P116: 天龍村 | R116: 1079
A117: 喬木村立椋鳩十記念 | C117: 399187 | D117: 123064 | E117: 27050 | F117: 3000 | G117: 462 | H117: 0 | I117: 10889 | J117: 42258 | K117: 3000 | L117: 444 | M117: 522.5570458 | O117: 3000 | P117: 喬木村立椋鳩十記念 | R117: 5741
A118: 豊丘村 | C118: 362031 | D118: 63656 | E118: 18068 | F118: 3800 | G118: 226 | H118: 0 | I118: 110 | K118: 3790 | L118: 225 | M118: 603.366148 | O118: 3800 | P118: 豊丘村 | R118: 6298
A119: 大桑村 | C119: 141470 | D119: 79380 | E119: 26003 | F119: 9800 | G119: 450 | H119: 200 | I119: 126 | K119: 19199 | M119: 3044.423734 | O119: 9800 | P119: 大桑村 | R119: 3219
A120: 山形村 | C120: 415050 | D120: 122082 | E120: 13195 | F120: 2000 | G120: 310 | H120: 500 | I120: 10385 | K120: 2000 | L120: 293 | M120: 242.1893921 | O120: 2000 | P120: 山形村 | R120: 8258
A121: 村立朝日村 | C121: 526380 | D121: 55530 | E121: 5819 | F121: 1300 | G121: 130 | J121: 7010 | K121: 1128 | L121: 128 | M121: 316.8413356 | O121: 1300 | P121: 村立朝日村 | R121: 4103
A122: 筑北村 | C122: 371316 | D122: 49838 | E122: 15806 | F122: 900 | G122: 271 | H122: 0 | K122: 960 | L122: 258 | M122: 228.1368821 | O122: 900 | P122: 筑北村 | R122: 3945
A123: 松川村 | C123: 430451 | D123: 155292 | E123: 21404 | F123: 2050 | G123: 630 | H123: 122 | I123: 0 | K123: 2050 | L123: 616 | M123: 215.5625657 | O123: 2050 | P123: 松川村 | R123: 9510
A124: 白馬村 | C124: 515809 | D124: 50585 | E124: 16033 | F124: 1200 | G124: 307 | H124: 100 | I124: 0 | K124: 1410 | L124: 107 | M124: 141.4593894 | O124: 1200 | P124: 白馬村 | R124: 8483
A125: 小谷村 | C125: 380854 | D125: 46509 | E125: 7898 | F125: 1604 | G125: 403 | H125: 234 | I125: 0 | J125: =SUM(F125:I125) -> 2241 | K125: 1451 | L125: 392 | M125: 629.7605026 | O125: 1604 | P125: 小谷村 | R125: 2547
A126: ライブラリー８２ | E126: 390 | G126: 110 | J126: 110 | L126: 110 | O126: 0 | P126: ライブラリー８２
A127: 合計 | C127: =SUM(C7:C126) -> 279714976 | D127: 28679926 | E127: 3816280 | F127: 518416 | G127: 75647 | H127: 18126 | I127: 216731 | J127: 765107 | K127: 524022 | L127: 71254 | M127: =F127*1000/R7 -> 258.2206932 | O127: =SUM(O8:O126) -> 489852 | R127: =SUM(R8:R126) -> 1941359
A129: ※1 図書館費は、臨時雇用以外の人件費を含む自治体と含めない自治体があるため、人件費を含まない金額としました。
A131: ※2 人口1人当図書費：令和5年度予算額のうち図書費/県人口
A133: ※3 令和4年度予算額・図書館費に会計年度任用職員等の報酬含む（日本図書館協会図書館調査票との整合性）
